bitfinex-derivatives/quotes_ETHF0:USTF0_20250520
["timestamp","ask_amount","ask_price","bid_price","bid_amount"]
[1747773690641,21.259805,2508.8,2508.7,0.00597717]
[1747773690942,5.159805,2508.8,2508.7,0.00597717]
[1747773691137,23.343805,2508.8,2508.7,7.17e-06]
[1747773691442,39.443805,2508.8,2508.7,7.17e-06]
[1747773700950,0.79713,2508.0,2507.9,1.3175]
[1747773701353,0.79716,2507.9,2507.8,1.34228735]
[1747773701654,0.79735,2507.3,2507.2,3.95393096]
[1747773702455,0.79735,2507.3,2507.2,3.52680028]
[1747773703050,0.79735,2507.3,2507.2,4.89140028]
[1747773703958,0.79735,2507.3,2507.2,4.5724]
[1747773707668,5.0,2507.3,2506.7,9.34715608]
[1747773707963,0.79751,2506.8,2506.7,1.2995]
[1747773709361,0.79751,2506.8,2506.6,1.0522]
[1747773709362,0.79755,2506.7,2506.6,1.0522]
[1747773709568,0.79758,2506.6,2506.5,1.02587717]
[1747773709767,4.00538,2506.6,2506.5,1.02587717]
[1747773709964,6.000155,2506.6,2506.5,0.00597717]
[1747773710165,7.357955,2506.6,2506.5,0.00597717]
[1747773710872,6.000155,2506.6,2506.5,0.00597717]
[1747773712779,6.000155,2506.6,2506.5,7.17e-06]
[1747773713677,6.000155,2506.6,2506.1,1.4017]
[1747773713678,0.7977,2506.2,2506.1,1.4017]
[1747773713869,4.0055,2506.2,2506.1,1.4017]
[1747773714070,6.00059,2506.2,2506.1,1.4017]
[1747773714272,0.79774,2506.1,2506.0,1.0199]
[1747773714471,2.18004,2506.1,2506.0,1.0199]
[1747773714672,4.17521,2506.1,2506.0,1.0199]
[1747773717580,0.7978,2505.9,2505.8,0.00597717]
[1747773717777,4.0056,2505.9,2505.8,0.00597717]
[1747773717977,0.79793,2505.5,2505.4,1.2784]
[1747773718677,2.10443,2505.5,2505.4,1.2784]
[1747773719079,0.79793,2505.5,2505.4,1.2784]
[1747773720078,3.2078,2505.6,2505.4,2.07634]
[1747773720280,0.79793,2505.5,2505.4,2.07634]
[1747773720576,3.2078,2505.6,2505.4,2.07634]
[1747773720881,0.79793,2505.5,2505.4,2.07634]
[1747773721074,3.2078,2505.6,2505.5,0.79793]
[1747773721276,0.79785,2505.8,2505.7,0.79786]
[1747773722382,0.79785,2505.8,2505.7,3.23436]
[1747773722574,3.2078,2505.9,2505.8,0.79783]
[1747773722886,3.2078,2506.6,2506.0,0.79777]
[1747773723072,4.00532,2506.9,2506.3,1.99419]
[1747773723279,0.79757,2506.7,2506.6,0.79756]
[1747773723786,0.79751,2506.9,2506.8,0.7975]
[1747773724283,0.79751,2506.8,2506.7,1.3711]
[1747773724477,0.7975,2506.9,2506.8,0.7975]
[1747773725178,0.79751,2506.8,2506.7,2.16862]
[1747773725678,4.00527,2507.0,2506.9,0.79748]
[1747773725878,4.00527,2507.0,2506.7,1.3711]
[1747773726081,0.79748,2506.9,2506.8,1.3711]
[1747773727376,0.79748,2506.9,2506.8,1.6901565]
[1747773730985,2.14418,2506.9,2506.8,1.6901565]
[1747773731284,2.14418,2506.9,2506.8,0.3190565]
[1747773732492,1.3467,2506.9,2506.8,1.1165665]
[1747773732786,0.00597717,2507.1,2507.0,0.79745]
[1747773732990,0.00597717,2507.1,2507.0,13.94145]
[1747773733188,0.00597717,2507.1,2507.0,16.05385]
[1747773733896,0.00597717,2507.1,2507.0,2.1124]
[1747773733897,0.80339717,2507.1,2507.0,2.1124]
[1747773734096,0.80339717,2507.1,2507.0,2.1348065]
[1747773734593,0.80339717,2507.1,2507.0,3.4888065]
[1747773735597,0.00597717,2507.1,2507.0,3.4888065]
[1747773736990,0.79725,2507.7,2507.6,0.79723]
[1747773737291,0.79725,2507.7,2507.6,13.94023]
[1747773737492,0.79725,2507.7,2507.6,14.2592865]
[1747773739099,2.08021,2507.8,2507.7,0.79723]
[1747773739397,0.00597717,2507.9,2507.8,0.7972]
[1747773739591,0.7972,2507.8,2507.7,1.377]
[1747773739892,0.79723,2507.7,2507.6,13.4100565]
[1747773740288,2.79113,2507.7,2507.6,13.4100565]
[1747773740590,1.37937717,2507.9,2507.6,13.091]
[1747773740790,0.79723,2507.7,2507.6,13.091]
[1747773741293,0.79726,2507.6,2507.5,2.17427]
[1747773741490,0.79726,2507.6,2507.5,15.26527]
[1747773742588,0.79726,2507.6,2507.5,2.17427]
[1747773742987,0.79726,2507.6,2507.5,14.467]
[1747773743294,2.79124,2507.6,2507.5,0.31895268]
[1747773743793,4.16494,2507.6,2507.5,0.31895268]
[1747773744693,0.79732,2507.4,2507.3,4.00515]
[1747773745595,0.79732,2507.4,2507.3,3.2078]
[1747773745896,0.79732,2507.4,2507.3,3.52677739]
[1747773746897,0.79732,2507.4,2507.3,4.32412739]
[1747773747194,0.79732,2507.4,2507.3,3.52677739]
[1747773748996,0.79732,2507.4,2507.3,4.32412739]
[1747773749398,3.22041,2507.6,2507.5,0.79729]
[1747773750798,3.22041,2507.6,2507.5,1.11626739]
[1747773753599,2.17101,2507.6,2507.5,1.11626739]
[1747773755495,4.16499,2507.6,2507.5,0.31897739]
[1747773757703,0.79739,2507.2,2507.1,0.37178261]
[1747773757898,0.79742,2507.1,2507.0,13.64612555]
[1747773758099,2.21182,2507.1,2507.0,13.64612555]
[1747773758501,2.21182,2507.1,2507.0,0.55712555]
[1747773758905,2.21182,2507.1,2507.0,1.35457555]
[1747773759103,2.21182,2507.1,2507.0,0.55712555]
[1747773759509,1.4144,2507.1,2507.0,1.35457555]
[1747773759707,1.4144,2507.1,2507.0,2.09005]
[1747773761009,1.4144,2507.1,2507.0,2.64717555]
[1747773761604,2.21182,2507.1,2507.0,2.64717555]
[1747773762516,2.21182,2507.1,2507.0,2.09005]
[1747773764808,2.21182,2507.1,2507.0,2.17491477]
[1747773765714,2.21182,2507.1,2507.0,2.09005]
[1747773767416,4.00513,2507.4,2507.1,1.99355]
[1747773767616,4.00513,2507.4,2507.3,0.79735]
[1747773767913,0.79739,2507.2,2507.1,1.8562]
[1747773768120,0.79745,2507.0,2506.9,17.09523]
[1747773768316,0.79745,2507.0,2506.9,18.40543]
[1747773770123,2.09774,2507.1,2507.0,0.79745]
[1747773770419,2.09774,2507.1,2507.0,2.14775]
[1747773771019,2.09774,2507.1,2507.0,1.3503]
[1747773771220,2.09774,2507.1,2507.0,2.14775]
[1747773771523,2.09774,2507.1,2507.0,2.46676173]
[1747773772320,2.09774,2507.1,2507.0,1.66931173]
[1747773772619,2.09774,2507.1,2507.0,13.35701173]
[1747773772820,2.09774,2507.1,2507.0,14.15446173]
[1747773773618,2.09774,2507.1,2507.0,13.35701173]
[1747773774012,4.09211501,2507.1,2507.0,0.31901173]
[1747773775215,7.29991501,2507.1,2507.0,0.31901173]
[1747773775722,7.29991501,2507.1,2507.0,0.60056777]
[1747773776118,2.09774,2507.1,2507.0,1.39801777]
[1747773776421,3.2078,2507.4,2507.3,0.79735]
[1747773776623,0.79735,2507.3,2507.2,13.038]
[1747773776824,1.284,2507.3,2507.1,13.038]
[1747773777018,0.79751,2506.8,2506.7,2.85133]
[1747773777316,0.79751,2506.8,2506.7,30.66343]
[1747773777717,0.79751,2506.8,2506.7,30.98244597]
[1747773777917,0.79751,2506.8,2506.7,31.73381602]
[1747773779527,0.79751,2506.8,2506.7,5.23581602]
[1747773779729,0.79751,2506.8,2506.7,31.73381602]
[1747773780028,0.79751,2506.8,2506.7,30.93628602]
[1747773780227,0.79751,2506.8,2506.7,31.73382602]
[1747773782131,0.79751,2506.9,2506.8,0.79748]
[1747773782428,2.08111,2506.9,2506.8,5.35718]
[1747773782631,2.08111,2506.9,2506.8,18.39518]
[1747773783524,2.08111,2506.9,2506.8,17.91671597]
[1747773784233,2.08111,2506.9,2506.8,18.71422597]
[1747773786029,3.2078,2507.4,2506.8,22.91671597]
[1747773786233,0.79744,2507.1,2507.0,0.7974]
[1747773787031,0.79744,2507.1,2507.0,2.114]
[1747773787834,0.79742,2507.2,2507.1,0.79738]
[1747773788031,0.79742,2507.2,2507.1,13.83538]
[1747773788337,0.79742,2507.2,2507.1,13.038]
[1747773788531,0.79742,2507.2,2507.1,13.83542]
[1747773789226,0.79742,2507.2,2507.1,13.35701597]
[1747773791239,0.79742,2507.2,2507.1,13.92063816]
[1747773792543,0.79742,2507.2,2507.1,0.88263816]
[1747773792730,0.79742,2507.2,2507.1,13.92063816]
[1747773793438,2.791715,2507.2,2507.1,0.88263816]
[1747773794032,0.79742,2507.2,2507.1,0.88263816]
[1747773794631,0.79742,2507.2,2507.1,0.69476335]
[1747773795432,0.79742,2507.2,2507.1,0.31901597]
[1747773797240,0.79742,2507.2,2507.1,13.35701597]
[1747773798136,0.79742,2507.2,2507.1,14.15443597]
[1747773798341,0.79742,2507.2,2507.1,13.35701597]
[1747773799136,0.79742,2507.2,2507.1,14.15443597]
[1747773799544,0.79742,2507.2,2507.1,13.35701597]
[1747773800249,4.6184,2507.4,2507.1,14.15443597]
[1747773800537,4.1468,2507.8,2507.2,0.9986]
[1747773800751,0.80315717,2507.9,2507.8,0.79719]
[1747773800932,0.80315717,2507.9,2507.8,12.985]
[1747773801333,0.00597717,2507.9,2507.4,3.2078]
[1747773801548,0.79729,2507.5,2507.4,3.2078]
[1747773801740,0.79729,2507.5,2507.4,12.985]
[1747773801942,0.79735,2507.3,2507.2,3.79885602]
[1747773802137,0.79735,2507.3,2507.2,29.44548602]
[1747773802344,0.79735,2507.3,2507.2,29.17249]
[1747773803749,0.79735,2507.3,2507.2,28.3751]
[1747773804245,0.79735,2507.3,2507.2,28.69406955]
[1747773804453,0.79735,2507.3,2507.2,29.49145955]
[1747773805152,0.79734,2507.4,2507.3,0.79735]
[1747773805349,0.79734,2507.4,2507.3,2.13655]
[1747773805954,0.79734,2507.4,2507.3,2.45551955]
[1747773806154,3.31548,2507.7,2507.4,0.79727]
[1747773806155,0.79732,2507.5,2507.4,0.79727]
[1747773806345,0.79723,2507.7,2507.6,0.79726]
[1747773806658,0.00597717,2507.9,2507.8,0.7972]
[1747773807155,0.00597717,2507.9,2507.8,2.1364]
[1747773807357,0.80313717,2507.9,2507.8,2.82947303]
[1747773807765,0.00597717,2507.9,2507.8,2.82947303]
[1747773808658,0.79704,2508.3,2508.2,0.79704]
[1747773808861,0.79704,2508.3,2508.2,12.983]
[1747773809060,2.20154,2508.3,2508.2,12.983]
[1747773810162,2.20154,2508.3,2508.2,13.58197606]
[1747773811366,2.20154,2508.3,2508.2,14.95527606]
[1747773811563,2.20154,2508.3,2508.2,15.75234606]
[1747773811762,2.20154,2508.3,2508.2,14.95527606]
[1747773812265,2.20154,2508.3,2508.2,15.75234606]
[1747773812466,2.20154,2508.3,2508.2,14.95527606]
[1747773813067,2.20154,2508.3,2508.2,14.67526955]
[1747773815772,4.19496,2508.3,2508.2,13.30196955]
[1747773816071,2.20154,2508.3,2508.2,13.30196955]
[1747773817874,2.20154,2508.3,2508.2,14.09903955]
[1747773818174,2.20154,2508.3,2508.2,13.30196955]
[1747773819874,4.19496,2508.3,2508.2,0.31896955]
[1747773820075,4.19496,2508.3,2508.2,13.29896955]
[1747773822676,4.19496,2508.3,2508.2,0.31896955]
[1747773822876,4.19496,2508.3,2508.2,13.29896955]
[1747773826876,3.98556,2508.1,2507.6,0.75012964]
[1747773827077,4.00503,2507.7,2507.6,0.75012964]
[1747773827371,0.79742,2507.1,2507.0,40.199]
[1747773827674,0.79748,2506.9,2506.8,9.64e-06]
[1747773827878,0.79748,2506.9,2506.8,12.97900964]
[1747773828375,2.20038,2506.9,2506.8,12.97900964]
[1747773828765,2.20038,2506.9,2506.8,12.979]
[1747773828973,0.79751,2506.8,2506.7,3.2078]
[1747773829179,0.79755,2506.7,2506.6,12.98697717]
[1747773829679,2.792245,2506.7,2506.6,12.98697717]
[1747773829979,3.366695,2506.7,2506.6,12.98697717]
[1747773830276,4.164245,2506.7,2506.6,13.78455717]
[1747773830880,4.164245,2506.7,2506.6,0.00597717]
[1747773833382,12.372045,2506.7,2506.6,0.00597717]
[1747773834483,7.372045,2506.7,2506.6,0.00597717]
[1747773838789,0.79767,2506.3,2506.2,12.927]
[1747773839090,0.79777,2506.0,2505.9,14.53235158]
[1747773839284,0.79777,2506.0,2505.9,27.46435158]
[1747773839484,0.79776,2506.1,2506.0,0.79776]
[1747773839886,0.79776,2506.1,2506.0,2.19996]
[1747773840288,2.17712,2506.2,2506.1,0.79774]
[1747773840491,1.3794,2506.2,2506.1,0.79774]
[1747773840990,0.79769,2506.3,2506.2,0.7977]
[1747773841990,0.79769,2506.3,2506.2,2.1482]
[1747773843282,0.79769,2506.3,2506.2,1.3505]
[1747773843487,0.79774,2506.1,2506.0,1.11687499]
[1747773843877,0.79774,2506.1,2506.0,2.46737499]
[1747773844492,0.79774,2506.1,2506.0,2.14826]
[1747773845791,0.79774,2506.1,2506.0,2.23312477]
[1747773845993,0.79772,2506.2,2506.1,0.7977]
[1747773847196,0.79772,2506.2,2506.1,13.7317]
[1747773847694,2.11588,2506.3,2506.2,0.7977]
[1747773847894,2.11588,2506.3,2506.2,2.17566477]
[1747773848987,4.00536,2506.7,2506.6,0.79758]
[1747773849587,4.00536,2506.7,2506.6,2.09068]
[1747773851095,4.00536,2506.7,2506.6,1.2931]
[1747773852396,4.00536,2506.7,2506.6,2.09068]
[1747773852693,4.00536,2506.7,2506.6,1.2931]
[1747773856889,4.00536,2506.7,2506.6,1.61218756]
[1747773857697,4.00536,2506.7,2506.6,0.31908756]
[1747773857897,6.000055,2506.7,2506.6,0.31908756]
[1747773858795,11.000055,2506.7,2506.6,0.31908756]
[1747773859002,11.194495,2506.7,2506.3,0.556034]
[1747773859298,4.00544,2506.4,2506.3,0.556034]
[1747773859690,6.000375,2506.4,2506.3,0.556034]
[1747773859892,7.196885,2506.4,2505.9,16.697834]
[1747773860096,1.3153,2506.3,2505.9,16.697834]
[1747773860597,3.31043,2506.3,2505.9,16.697834]
[1747773860802,0.79777,2506.0,2505.9,16.697834]
[1747773861497,2.79302,2506.0,2505.9,3.2078]
[1747773861687,2.79302,2506.0,2505.8,0.00597717]
[1747773861688,0.7978,2505.9,2505.8,0.00597717]
[1747773861892,2.1131,2505.9,2505.8,0.00597717]
[1747773862094,4.10843,2505.9,2505.8,0.00597717]
[1747773862605,0.7977,2506.3,2506.2,0.7977]
[1747773862798,4.5231,2506.5,2506.1,12.884]
[1747773863099,0.79767,2506.4,2506.3,0.79766]
[1747773863491,0.79767,2506.4,2506.3,2.16156]
[1747773863692,3.2078,2506.8,2506.3,6.3639]
[1747773863995,0.79756,2506.7,2506.6,0.79755]
[1747773864198,0.79756,2506.7,2506.6,13.76641477]
[1747773864394,0.8364,2507.0,2506.6,16.17666477]
[1747773864601,0.7975,2506.9,2506.8,0.79748]
[1747773864800,0.7975,2506.9,2506.8,0.9907]
[1747773865001,2.79203501,2506.9,2506.8,0.9907]
[1747773865801,0.7975,2506.9,2506.8,0.9907]
[1747773866008,0.00597717,2507.1,2507.0,0.79745]
[1747773866198,0.80339717,2507.1,2507.0,13.68145]
[1747773866496,0.80339717,2507.1,2507.0,14.2575]
[1747773866704,0.80339717,2507.1,2507.0,15.05495]
[1747773866902,0.00597717,2507.1,2507.0,18.26275]
[1747773867294,0.80339717,2507.1,2507.0,18.26275]
[1747773867493,0.80339717,2507.1,2507.0,4.5813]
[1747773867700,0.80339717,2507.1,2507.0,1.3735]
[1747773867899,0.80339717,2507.1,2507.0,14.2575]
[1747773868099,2.79777218,2507.1,2507.0,12.884]
[1747773868305,0.80339717,2507.1,2507.0,12.884]
[1747773868803,0.80339717,2507.1,2507.0,13.68145]
[1747773869002,2.10859717,2507.1,2507.0,15.05495]
[1747773869301,2.10859717,2507.1,2507.0,14.2575]
[1747773869506,1.31117717,2507.1,2507.0,15.05495]
[1747773869908,2.10859717,2507.1,2507.0,12.884]
[1747773870109,2.10859717,2507.1,2507.0,13.68145]
[1747773870503,2.10859717,2507.1,2507.0,12.884]
[1747773870811,2.10859717,2507.1,2507.0,13.68145]
[1747773871206,2.10859717,2507.1,2507.0,14.00046865]
[1747773871412,2.10859717,2507.1,2507.0,13.20301865]
[1747773871709,4.10297218,2507.1,2507.0,1.11646865]
[1747773872012,4.10297218,2507.1,2507.0,0.31901865]
[1747773872209,12.31077218,2507.1,2507.0,0.31901865]
[1747773872512,0.79748,2506.9,2506.8,0.34659659]
[1747773873007,0.79751,2506.8,2506.7,0.79753]
[1747773873207,4.100625,2506.8,2506.7,0.79753]
[1747773873614,1.3085,2506.8,2506.7,0.79753]
[1747773874114,0.79746,2507.0,2506.9,0.79748]
[1747773874812,5.31971717,2507.1,2507.0,0.79745]
[1747773875012,4.52227717,2507.1,2507.0,0.79745]
[1747773875315,5.31969717,2507.1,2507.0,13.67945]
[1747773876215,5.31969717,2507.1,2507.0,12.882]
[1747773876414,7.31407218,2507.1,2507.0,14.2894]
[1747773876602,7.31407218,2507.1,2507.0,15.08685]
[1747773876603,5.31969717,2507.1,2507.0,15.08685]
[1747773877015,2.11189717,2507.1,2507.0,15.08685]
[1747773877315,2.11189717,2507.1,2507.0,14.2894]
[1747773877810,2.11189717,2507.1,2506.9,1.71506]
[1747773878016,2.11189717,2507.1,2507.0,12.882]
[1747773878220,2.11189717,2507.1,2507.0,13.67945]
[1747773878413,2.11189717,2507.1,2507.0,12.882]
[1747773878714,2.11189717,2507.1,2507.0,13.67945]
[1747773879621,2.11189717,2507.1,2507.0,12.882]
[1747773879918,2.11189717,2507.1,2507.0,13.67945]
[1747773880328,0.00597717,2507.1,2507.0,13.67945]
[1747773881425,0.00597717,2507.1,2507.0,15.91305]
[1747773884425,0.79734,2507.4,2507.3,0.79735]
[1747773884626,0.79734,2507.4,2507.3,13.67835]
[1747773884824,0.8376,2507.7,2507.3,12.881]
[1747773885017,1.99274,2508.2,2507.6,3.2078]
[1747773885213,0.7972,2507.9,2507.8,0.79717]
[1747773885718,0.7972,2507.9,2507.8,2.11087]
[1747773885919,0.7972,2507.9,2507.8,2.42984379]
[1747773886424,0.79715,2508.0,2507.9,0.79713]
[1747773886624,1.3643,2508.0,2507.9,2.11083]
[1747773886929,0.00597717,2508.1,2508.0,0.79713]
[1747773887121,0.00597717,2508.1,2508.0,2.11083]
[1747773887627,0.80307717,2508.1,2508.0,2.11083]
[1747773888525,0.80307717,2508.1,2508.0,2.42980379]
[1747773889627,0.80307717,2508.1,2508.0,1.63267379]
[1747773889825,0.80307717,2508.1,2508.0,2.42980379]
[1747773890021,0.80307717,2508.1,2508.0,1.63267379]
[1747773890224,0.80307717,2508.1,2508.0,2.42980379]
[1747773890927,0.80307717,2508.1,2508.0,0.31897379]
[1747773891230,2.79665718,2508.1,2508.0,13.19697379]
[1747773891725,0.80307717,2508.1,2508.0,13.19697379]
[1747773891926,2.79665718,2508.1,2508.0,13.19697379]
[1747773894030,2.79665718,2508.1,2508.0,0.31897379]
[1747773894230,2.79665718,2508.1,2508.0,13.14797379]
[1747773894925,2.79665718,2508.1,2508.0,0.31897379]
[1747773895131,6.00445718,2508.1,2508.0,0.31897379]
[1747773896332,0.79713,2508.0,2507.9,12.829]
[1747773896532,2.97743,2508.0,2507.9,12.829]
[1747773896733,4.97109,2508.0,2507.9,12.829]
[1747773897632,0.79716,2507.9,2507.8,0.79719]
[1747773897825,2.08206,2507.9,2507.8,0.79719]
[1747773898025,4.0758,2507.9,2507.8,0.79719]
[1747773899035,2.08206,2507.9,2507.8,1.11609026]
[1747773899228,2.08206,2507.9,2507.8,2.51719026]
[1747773900025,2.08206,2507.9,2507.8,3.41569026]
[1747773900835,0.00597717,2508.1,2508.0,0.79713]
[1747773901443,0.79713,2508.0,2507.9,0.8458]
[1747773901633,2.10803,2508.0,2507.9,0.8458]
[1747773901834,1.3109,2508.0,2507.9,2.24115351]
[1747773902029,0.00597717,2508.1,2508.0,0.79713]
[1747773902235,0.00597717,2508.1,2508.0,2.18793]
[1747773902941,0.00597717,2508.1,2508.0,7.18793]
[1747773903142,3.2078,2508.4,2508.3,0.79704]
[1747773903336,3.2078,2508.4,2508.3,13.62504]
[1747773903834,0.79693,2508.7,2508.6,0.79694]
[1747773904335,2.790035,2508.7,2508.6,0.79694]
[1747773904538,0.79693,2508.7,2508.6,0.79694]
[1747773904841,4.0047,2508.8,2508.7,0.79691]
[1747773905148,4.0047,2508.8,2508.7,13.62391]
[1747773905345,1.42864194,2508.9,2508.8,0.79688]
[1747773905536,1.42864194,2508.9,2508.8,2.90588]
[1747773905730,1.34377717,2508.9,2508.8,2.90588]
[1747773906035,0.79674,2509.3,2509.2,0.79671]
[1747773906234,0.79674,2509.3,2509.2,13.62371]
[1747773906436,1.3543,2509.5,2509.2,12.827]
[1747773906639,1.3543,2509.5,2509.4,0.79669]
[1747773906841,2.15096,2509.5,2509.4,0.79669]
[1747773907134,2.15096,2509.5,2509.4,2.16909]
[1747773907335,2.15096,2509.5,2509.4,1.3724]
[1747773907538,0.79669,2509.4,2509.3,0.869]
[1747773907740,2.15099,2509.4,2509.3,0.869]
[1747773907930,2.15099,2509.4,2509.3,13.695]
[1747773908340,2.15099,2509.4,2509.3,14.01390026]
[1747773908540,4.14354,2509.4,2509.3,14.01390026]
[1747773908941,4.14354,2509.4,2509.3,14.81062026]
[1747773909341,1.3543,2509.4,2509.3,16.21422026]
[1747773910138,2.15099,2509.4,2509.3,16.21422026]
[1747773910344,1.3543,2509.4,2509.3,16.21422026]
[1747773910647,2.15099,2509.4,2509.3,16.21422026]
[1747773910839,2.15099,2509.4,2509.3,15.41750026]
[1747773911738,4.14354,2509.4,2509.3,14.01390026]
[1747773912743,1.99255,2509.4,2509.3,14.81062026]
[1747773913040,1.99255,2509.4,2509.3,16.16252026]
[1747773913337,2.78924,2509.4,2509.3,16.16252026]
[1747773913543,2.78924,2509.4,2509.3,15.36580026]
[1747773913744,2.78924,2509.4,2509.3,16.16252026]
[1747773915347,1.99255,2509.4,2509.3,16.16252026]
[1747773915845,1.3267,2509.6,2509.5,0.79666]
[1747773916039,0.00597717,2509.7,2509.6,0.79662]
[1747773916235,0.00597717,2509.7,2509.6,2.10292]
[1747773916847,1.7984,2510.6,2510.4,0.79636]
[1747773917043,0.9065,2510.6,2510.5,0.79634]
[1747773917343,1.3638,2510.7,2510.6,0.79631]
[1747773917545,1.7662,2511.1,2510.5,2.1775]
[1747773917738,0.79623,2510.9,2510.8,0.79622]
[1747773917938,0.79623,2510.9,2510.8,13.61822]
[1747773918138,2.78759,2510.9,2510.8,12.822]
[1747773918544,3.98193,2510.9,2510.5,0.87717717]
[1747773918751,1.3462,2510.8,2510.5,13.69917717]
[1747773918943,0.7963,2510.7,2510.6,0.79629]
[1747773919138,4.13397501,2510.8,2510.7,0.79627]
[1747773919343,2.14244,2510.8,2510.7,0.79627]
[1747773919652,1.35217717,2511.1,2511.0,0.79618]
[1747773919949,1.35217717,2511.1,2511.0,13.61518]
[1747773919950,2.14832717,2511.1,2511.0,13.61518]
[1747773920247,0.00597717,2511.1,2511.0,13.61518]
[1747773920550,0.80212717,2511.1,2511.0,12.819]
[1747773921345,0.80212717,2511.1,2511.0,14.99048]
[1747773921749,0.00597717,2511.1,2511.0,14.99048]
[1747773921942,0.80212717,2511.1,2511.0,14.99048]
[1747773922241,0.80212717,2511.1,2511.0,14.1943]
[1747773922948,0.00597717,2511.1,2511.0,14.99048]
[1747773923148,0.00597717,2511.1,2511.0,33.43348]
[1747773923446,0.8743,2511.6,2511.5,0.79602]
[1747773923447,2.20479,2511.6,2511.5,0.79602]
[1747773923643,2.20479,2511.6,2511.5,12.767]
[1747773923841,0.79599,2511.6,2511.5,13.56301]
[1747773924240,0.79599,2511.6,2511.5,12.767]
[1747773924644,0.79599,2511.6,2511.5,14.0441]
[1747773925652,2.20718,2511.7,2511.6,0.79599]
[1747773925852,0.79599,2511.6,2511.5,14.8401]
[1747773926049,0.79599,2511.6,2511.5,12.764]
[1747773926250,2.78679001,2511.6,2511.5,12.764]
[1747773926451,0.79599,2511.6,2511.5,12.764]
[1747773927045,1.99080001,2511.6,2511.5,13.56002]
[1747773927239,2.78679001,2511.6,2511.5,13.56002]
[1747773927644,2.78679001,2511.6,2511.5,12.764]
[1747773928941,2.78679001,2511.6,2511.5,13.56002]
[1747773930254,1.99080001,2511.6,2511.5,13.56002]
[1747773930455,1.4112,2511.7,2511.6,0.79599]
[1747773930648,0.00391501,2511.8,2511.7,0.79596]
[1747773931153,1.99456001,2511.8,2511.7,0.79596]
[1747773931753,3.35966001,2511.8,2511.7,0.79596]
[1747773932145,0.00391501,2511.8,2511.7,0.79596]
[1747773934455,0.00391501,2511.8,2511.7,1.11445179]
[1747773934656,3.2078,2513.0,2512.9,0.79558]
[1747773935153,4.8759,2513.3,2513.2,0.79548]
[1747773935458,6.865515,2513.3,2512.8,12.76]
[1747773935656,0.79555,2513.0,2512.9,0.79556]
[1747773935858,0.79551,2513.2,2513.1,0.7955]
[1747773936060,1.2842,2513.2,2512.9,1.3527]
[1747773936459,4.069325,2513.2,2513.1,0.79551]
[1747773936762,0.79552,2513.1,2513.0,0.79552]
[1747773936957,3.2078,2513.3,2513.2,0.79548]
[1747773937158,0.79553,2513.1,2513.0,0.79553]
[1747773937354,0.79553,2513.1,2513.0,13.55253]
[1747773937552,2.785145,2513.1,2513.0,12.757]
[1747773938060,0.79555,2513.0,2512.9,0.79556]
[1747773938262,2.785145,2513.1,2513.0,12.757]
[1747773938462,0.79553,2513.1,2513.0,12.757]
[1747773938653,6.989615,2513.1,2512.8,0.00597717]
[1747773938856,0.79558,2512.9,2512.8,0.00597717]
[1747773939160,0.79555,2513.0,2512.9,0.79557]
[1747773939465,1.989735,2513.0,2512.9,0.79557]
[1747773940058,4.078,2513.5,2513.4,0.79542]
[1747773940352,0.79521,2514.1,2513.4,3.50857083]
[1747773940554,1.7101,2514.2,2514.1,0.7952]
[1747773940759,1.98874501,2514.2,2514.1,16.759]
[1747773941154,3.2078,2514.6,2514.5,0.79507]
[1747773941463,3.2078,2515.2,2514.6,0.79504]
[1747773941664,3.2078,2515.2,2515.1,0.79488]
[1747773941864,0.30286521,2515.4,2514.9,12.756]
[1747773942062,0.30286521,2515.4,2515.0,12.756]
[1747773942360,0.79477,2515.5,2515.2,0.79484]
[1747773942668,0.79474,2515.6,2515.2,0.79484]
[1747773942861,0.79474,2515.6,2515.3,0.79481]
[1747773943067,0.79474,2515.6,2515.1,4.6025]
[1747773943068,1.987795,2515.6,2515.1,4.6025]
[1747773943361,3.2078,2515.2,2514.6,12.751]
[1747773943755,5.99081,2515.2,2514.6,12.751]
[1747773943954,5.19595,2515.2,2514.7,1.3947]
[1747773944159,0.79504,2514.6,2514.5,0.31800733]
[1747773944363,4.00285,2514.6,2514.4,1.11310733]
[1747773944557,5.19626501,2514.6,2514.5,0.79507]
[1747773944956,5.19626501,2514.6,2514.5,12.751]
[1747773945166,5.99130501,2514.6,2514.5,12.751]
[1747773945368,0.7951,2514.4,2514.3,12.75697717]
[1747773945756,2.783685,2514.4,2514.3,0.00597717]
[1747773946163,1.988585,2514.4,2514.3,0.80110717]
[1747773946357,1.988585,2514.4,2514.3,2.07830717]
[1747773946564,3.2078,2514.6,2514.5,0.79507]
[1747773946766,1.7355,2514.8,2514.6,0.79504]
[1747773946963,2.86235,2514.8,2514.7,0.79501]
[1747773947163,3.2078,2515.3,2514.7,3.2078]
[1747773947363,0.79488,2515.1,2514.9,0.79493]
[1747773947567,0.79491,2515.0,2514.9,12.749]
[1747773947763,0.79486,2515.2,2515.0,0.79491]
[1747773948070,0.79489,2515.1,2514.9,13.54392]
[1747773948370,0.79488,2515.1,2515.0,3.2078]
[1747773948566,0.79493,2515.0,2514.8,1.2772]
[1747773948873,1.98807,2515.1,2514.9,12.749]
[1747773949568,2.78295,2515.1,2514.9,13.53259249]
[1747773950072,2.78295,2515.1,2514.9,12.73766249]
[1747773950263,1.98807,2515.1,2514.9,13.53260249]
[1747773950466,1.98807,2515.1,2515.0,0.79491]
[1747773951868,1.98803,2515.1,2515.0,0.79491]
[1747773952069,0.79491,2515.0,2514.9,12.73766249]
[1747773952469,0.79495,2514.9,2514.8,13.02199668]
[1747773952869,2.78314001,2514.9,2514.8,13.02199668]
[1747773953173,1.98819001,2514.9,2514.8,1.11297668]
[1747773953359,1.98819001,2514.9,2514.8,13.49898]
[1747773953560,1.98819001,2514.9,2514.6,0.31799668]